fUST/lending_fUST_20250618
["ID","MTS","AMOUNT","RATE_DAILY","PERIOD"]
[366394388,1750229446900,-460.0,0.00023123,6]
[366394389,1750229446909,-637.71,0.00023123,6]
[366394390,1750229446920,-460.0,0.00023123,6]
[366394391,1750229446931,-465.71,0.00023123,6]
[366394392,1750229446940,-621.89,0.00023123,6]
[366394393,1750229446951,-460.0,0.00023123,6]
[366394394,1750229446962,-489.66,0.00023123,6]
[366394395,1750229446971,-460.0,0.00023123,6]
[366394396,1750229446980,-233.32733765,0.00023123,6]
[366394397,1750229446989,-193.76,0.00023123,6]
[366394398,1750229446998,-2210.68,0.00023123,6]
[366394399,1750229447007,-460.0,0.00023123,6]
[366394400,1750229447016,-696.53,0.00023123,6]
[366394401,1750229447026,-615.68,0.00023123,6]
[366394402,1750229447035,-272.09578767,0.00023141,8]
[366394403,1750229447045,-1500.0,0.00023168,2]
[366394404,1750229447055,-500.0,0.00023178,2]
[366394405,1750229447064,-194.21689834,0.00023178,2]
[366394406,1750229447073,-500.0,0.00023178,2]
[366394407,1750229447082,-500.0,0.00023178,2]
[366394408,1750229447092,-5000.0,0.0002318,2]
[366394409,1750229447101,-435.0,0.00023198,2]
[366394410,1750229447110,-402.45191863,0.00023209,2]
[366394411,1750229447119,-476.0,0.00023213,2]
[366394412,1750229447128,-517.38,0.00023232,6]
[366394413,1750229447137,-1001.06,0.00023232,6]
[366394414,1750229447147,-714.92,0.00023232,6]
[366394415,1750229447156,-1397.67,0.00023232,6]
[366394416,1750229447165,-460.0,0.00023232,6]
[366394417,1750229447176,-460.0,0.00023232,6]
[366394418,1750229447186,-637.71,0.00023232,6]
[366394419,1750229447196,-460.0,0.00023232,6]
[366394420,1750229447206,-465.71,0.00023232,6]
[366394421,1750229447217,-621.89,0.00023232,6]
[366394422,1750229447226,-460.0,0.00023232,6]
[366394423,1750229447236,-460.0,0.00023232,6]
[366394424,1750229447246,-2210.68,0.00023232,6]
[366394425,1750229447255,-696.53,0.00023232,6]
[366394426,1750229447265,-615.68,0.00023232,6]
[366394427,1750229447274,-500.59896885,0.00023236,2]
[366394428,1750229447283,-272.09578767,0.00023279,8]
[366394429,1750229447293,-160.0,0.00023286,2]
[366394430,1750229447302,-500.0,0.00023289,2]
[366394431,1750229447311,-600.0,0.00023289,2]
[366394432,1750229447321,-691.408467,0.00023324,3]
[366394433,1750229447331,-435.0,0.00023339,2]
[366394434,1750229447340,-1511.47,0.00023341,2]
[366394435,1750229447350,-517.38,0.00023342,6]
[366394436,1750229447359,-1001.06,0.00023342,6]
[366394437,1750229447369,-714.92,0.00023342,6]
[366394438,1750229447378,-1397.67,0.00023342,6]
[366394439,1750229447388,-460.0,0.00023342,6]
[366394440,1750229447398,-460.0,0.00023342,6]
[366394441,1750229447407,-637.71,0.00023342,6]
[366394442,1750229447417,-460.0,0.00023342,6]
[366394443,1750229447426,-465.71,0.00023342,6]
[366394444,1750229447436,-621.89,0.00023342,6]
[366394445,1750229447448,-460.0,0.00023342,6]
[366394446,1750229447458,-460.0,0.00023342,6]
[366394447,1750229447467,-2210.68,0.00023342,6]
[366394448,1750229447477,-696.53,0.00023342,6]
[366394449,1750229447487,-615.68,0.00023342,6]
[366394450,1750229447496,-272.09578767,0.00023417,9]
[366394451,1750229447505,-435.0,0.0002342,2]
[366394452,1750229447518,-476.0,0.00023446,2]
[366394453,1750229447527,-517.38,0.00023452,6]
[366394454,1750229447537,-1001.06,0.00023452,6]
[366394455,1750229447547,-714.92,0.00023452,6]
[366394456,1750229447558,-1397.67,0.00023452,6]
[366394457,1750229447568,-460.0,0.00023452,6]
[366394458,1750229447578,-460.0,0.00023452,6]
[366394459,1750229447588,-637.71,0.00023452,6]
[366394460,1750229447598,-460.0,0.00023452,6]
[366394461,1750229447607,-465.71,0.00023452,6]
[366394462,1750229447617,-621.89,0.00023452,6]
[366394463,1750229447628,-157.35,0.00023452,6]
[366394464,1750229447638,-460.0,0.00023452,6]
[366394465,1750229447648,-2210.68,0.00023452,6]
[366394466,1750229447657,-696.53,0.00023452,6]
[366394467,1750229447667,-615.68,0.00023452,6]
[366394468,1750229447676,-574.2153043,0.00023507,2]
[366394469,1750229447685,-177.1504183,0.00023507,2]
[366394470,1750229447694,-153.0,0.00023507,2]
[366394471,1750229447703,-177.1504183,0.00023507,2]
[366394472,1750229447713,-574.2153043,0.00023507,2]
[366394473,1750229447722,-153.0,0.00023507,2]
[366394474,1750229447731,-177.1504183,0.00023507,2]
[366394475,1750229447741,-574.2153043,0.00023507,2]
[366394476,1750229447750,-153.0,0.00023507,2]
[366394477,1750229447760,-153.0,0.00023507,2]
[366394478,1750229447769,-153.0,0.00023507,2]
[366394479,1750229447779,-172.0790001,0.00023507,2]
[366394480,1750229447788,-368.2898999,0.00023534,2]
[366394481,1750229447798,-153.0,0.00023534,2]
[366394482,1750229447807,-153.0,0.00023534,2]
[366394483,1750229447816,-153.0,0.00023534,2]
[366394484,1750229447825,-153.0,0.00023534,2]
[366394485,1750229447835,-272.09578767,0.00023555,9]
[366394486,1750229447844,-517.38,0.00023561,6]
[366394487,1750229447853,-151.0,0.00023561,7]
[366394488,1750229447863,-160.305249,0.00023561,7]
[366394489,1750229447872,-160.305249,0.00023561,7]
[366394490,1750229447881,-1001.06,0.00023561,6]
[366394491,1750229447891,-714.92,0.00023561,6]
[366394492,1750229447900,-151.0,0.00023561,7]
[366394493,1750229447909,-1397.67,0.00023561,6]
[366394494,1750229447919,-460.0,0.00023561,6]
[366394495,1750229447928,-460.0,0.00023561,6]
[366394496,1750229447937,-637.71,0.00023561,6]
[366394497,1750229447947,-460.0,0.00023561,6]
[366394498,1750229447959,-465.71,0.00023561,6]
[366394499,1750229447968,-621.89,0.00023561,6]
[366394500,1750229447977,-460.0,0.00023561,6]
[366394501,1750229447987,-2210.68,0.00023561,6]
[366394502,1750229447996,-696.53,0.00023561,6]
[366394503,1750229448005,-615.68,0.00023561,6]
[366394504,1750229448015,-476.0,0.00023565,2]
[366394505,1750229448024,-435.0,0.00023637,2]
[366394506,1750229448034,-517.38,0.00023671,6]
[366394507,1750229448044,-1001.06,0.00023671,6]
[366394508,1750229448054,-714.92,0.00023671,6]
[366394509,1750229448064,-1397.67,0.00023671,6]
[366394510,1750229448073,-202.22953987,0.00023671,6]
[366394511,1750229448082,-460.0,0.00023671,6]
[366394512,1750229448092,-637.71,0.00023671,6]
[366394513,1750229448102,-460.0,0.00023671,6]
[366394514,1750229448111,-465.71,0.00023671,6]
[366394515,1750229448120,-621.89,0.00023671,6]
[366394516,1750229448130,-460.0,0.00023671,6]
[366394517,1750229448139,-2210.68,0.00023671,6]
[366394518,1750229448149,-696.53,0.00023671,6]
[366394519,1750229448158,-615.68,0.00023671,6]
[366394520,1750229448167,-402.45191863,0.00023673,2]
[366394521,1750229448181,-272.09578767,0.00023693,9]
[366394522,1750229448190,-1008.2556835,0.00023716,2]
[366394523,1750229448199,-502.00418088,0.00023726,2]
[366394524,1750229448209,-500.0,0.0002376,2]
[366394525,1750229448219,-500.0,0.00023762,2]
[366394526,1750229448228,-500.95696908,0.00023762,2]
[366394527,1750229448238,-505.22313109,0.00023773,2]
[366394528,1750229448248,-503.72264122,0.00023773,2]
[366394529,1750229448257,-501.94940115,0.00023773,2]
[366394530,1750229448267,-151.0,0.0002378,7]
[366394531,1750229448276,-151.0,0.0002378,7]
[366394532,1750229448284,-151.0,0.0002378,7]
[366394533,1750229448293,-220.041098,0.0002378,2]
[366394534,1750229448301,-220.041098,0.0002378,2]
[366394535,1750229448309,-517.38,0.0002378,6]
[366394536,1750229448317,-1001.06,0.0002378,6]
[366394537,1750229448325,-714.92,0.0002378,6]
[366394538,1750229448334,-1397.67,0.0002378,6]
[366394539,1750229448343,-460.0,0.0002378,6]
[366394540,1750229448353,-637.71,0.0002378,6]
[366394541,1750229448362,-460.0,0.0002378,6]
[366394542,1750229448371,-465.71,0.0002378,6]
[366394543,1750229448380,-621.89,0.0002378,6]
[366394544,1750229448390,-460.0,0.0002378,6]
[366394545,1750229448399,-2210.68,0.0002378,6]
[366394546,1750229448408,-696.53,0.0002378,6]
[366394547,1750229448418,-615.68,0.0002378,6]
[366394548,1750229448428,-151.0,0.0002378,7]
[366394549,1750229448437,-280.94216143,0.00023799,2]
[366394550,1750229448447,-29236.18916036,0.000238,7]
[366394551,1750229448456,-86979.28,0.000238,2]
[366394552,1750229448465,-160.0,0.000238,3]
[366394553,1750229448475,-229.98435572,0.000238,3]
[366394554,1750229448485,-160.0,0.000238,3]
[366394555,1750229448494,-686.86,0.000238,7]
[366394556,1750229448503,-1902.18,0.000238,7]
[366394557,1750229448513,-151.0,0.000238,7]
[366394558,1750229448527,-151.0,0.000238,7]
[366394559,1750229448537,-170.243536,0.000238,7]
[366394560,1750229448547,-160.305249,0.000238,7]
[366394561,1750229448557,-160.305249,0.000238,7]
[366394562,1750229448568,-151.0,0.000238,7]
[366394563,1750229448578,-151.0,0.000238,7]
[366394564,1750229448588,-1003.790933,0.000238,2]
[366394565,1750229448599,-1003.790933,0.000238,2]
[366394566,1750229448608,-151.0,0.000238,7]
[366394567,1750229448618,-151.0,0.000238,7]
[366394568,1750229448627,-151.0,0.000238,7]
[366394569,1750229448637,-601.73985976,0.00023808,2]
[366394570,1750229448728,-420.0,0.00023813,2]
[366394571,1750229448738,-420.0,0.00023814,2]
[366394572,1750229448748,-272.09578767,0.00023831,10]
[366394573,1750229448758,-158.80186321,0.00023836,2]
[366394574,1750229448768,-1000.0,0.00023837,2]
[366394575,1750229448778,-1200.0,0.00023837,2]
[366394576,1750229448796,-500.0,0.00023859,2]
[366394577,1750229448806,-500.0,0.00023859,2]
[366394578,1750229448816,-502.79229752,0.00023886,2]
[366394579,1750229448825,-151.0,0.0002389,7]
[366394580,1750229448835,-151.0,0.0002389,7]
[366394581,1750229448845,-220.041098,0.0002389,2]
[366394582,1750229448855,-220.041098,0.0002389,2]
[366394583,1750229448866,-517.38,0.0002389,6]
[366394584,1750229448875,-1001.06,0.0002389,6]
[366394585,1750229448885,-714.92,0.0002389,6]
[366394586,1750229448894,-1397.67,0.0002389,6]
[366394587,1750229448903,-460.0,0.0002389,6]
[366394588,1750229448912,-637.71,0.0002389,6]
[366394589,1750229448921,-254.68,0.0002389,6]
[366394590,1750229448931,-465.71,0.0002389,6]
[366394591,1750229448940,-621.89,0.0002389,6]
[366394592,1750229448950,-460.0,0.0002389,6]
[366394593,1750229448959,-2210.68,0.0002389,6]
[366394594,1750229448968,-696.53,0.0002389,6]
[366394595,1750229448977,-615.68,0.0002389,6]
[366394596,1750229448986,-2147.54,0.00023898,3]
[366394597,1750229448995,-168.22107849,0.000239,2]
[366394598,1750229449005,-383.82720915,0.00023912,12]
[366394599,1750229449014,-964.0,0.00023933,2]
[366394600,1750229449023,-2161.0,0.00023933,2]
[366394601,1750229449032,-653.0,0.00023933,2]
[366394602,1750229449041,-152.636,0.00023933,2]
[366394603,1750229449051,-406.0,0.00023933,2]
[366394604,1750229449061,-677.0,0.00023947,2]
[366394605,1750229449070,-4553.62499,0.00023963,4]
[366394606,1750229449080,-6000.0,0.00023964,3]
[366394607,1750229449090,-272.09578767,0.00023969,10]
[366394608,1750229449099,-160.0,0.0002397,3]
[366394609,1750229449109,-424.70586748,0.0002397,3]
[366394610,1750229449118,-835.98428123,0.0002397,3]
[366394611,1750229449128,-845.78193577,0.0002397,3]
[366394612,1750229449137,-12542.39314967,0.0002397,3]
[366394613,1750229449146,-160.0,0.0002397,3]
[366394614,1750229449156,-213.43818883,0.0002397,3]
[366394615,1750229449165,-30093.0,0.00024,2]
[366394616,1750229449174,-3000.0,0.00024,2]
[366394617,1750229449184,-160.0,0.00024,7]
[366394618,1750229449194,-229.98435572,0.00024,7]
[366394619,1750229449203,-10029.25206221,0.00024,2]
[366394620,1750229449213,-158.0,0.00024,2]
[366394621,1750229449222,-160.0,0.00024,7]
[366394622,1750229449232,-424.70586748,0.00024,7]
[366394623,1750229449241,-517.38,0.00024,6]
[366394624,1750229449250,-1001.06,0.00024,6]
[366394625,1750229449260,-714.92,0.00024,6]
[366394626,1750229449269,-1397.67,0.00024,6]
[366394627,1750229449278,-835.98428123,0.00024,7]
[366394628,1750229449288,-604.42,0.00024,6]
[366394629,1750229449297,-637.71,0.00024,6]
[366394630,1750229449306,-465.71,0.00024,6]
[366394631,1750229449314,-621.89,0.00024,6]
[366394632,1750229449324,-460.0,0.00024,6]
[366394633,1750229449333,-2210.68,0.00024,6]
[366394634,1750229449343,-151.0,0.00024,7]
[366394635,1750229449353,-696.53,0.00024,6]
[366394636,1750229449362,-615.68,0.00024,6]
[366394637,1750229449371,-215.0738,0.00024001,2]
[366394638,1750229449380,-3000.0,0.0002401,2]
[366394639,1750229449389,-3000.0,0.0002402,2]
[366394640,1750229449398,-8000.0,0.00024024,3]
[366394641,1750229449407,-3000.0,0.0002403,2]
[366394642,1750229449417,-677.0,0.00024037,2]
[366394643,1750229449426,-3000.0,0.0002404,2]
[366394644,1750229449435,-3000.0,0.0002405,2]
[366394645,1750229449445,-3000.0,0.0002406,2]
[366394646,1750229449454,-3000.0,0.0002407,2]
[366394647,1750229449463,-3000.0,0.0002408,2]
[366394648,1750229449472,-3000.0,0.0002409,2]
[366394649,1750229449482,-3000.0,0.000241,2]
[366394650,1750229449491,-272.09578767,0.00024107,10]
[366394651,1750229449500,-517.38,0.00024109,6]
[366394652,1750229449510,-1001.06,0.00024109,6]
[366394653,1750229449522,-714.92,0.00024109,6]
[366394654,1750229449531,-1397.67,0.00024109,6]
[366394655,1750229449541,-637.71,0.00024109,6]
[366394656,1750229449550,-465.71,0.00024109,6]
[366394657,1750229449561,-621.89,0.00024109,6]
[366394658,1750229449571,-460.0,0.00024109,6]
[366394659,1750229449580,-2210.68,0.00024109,6]
[366394660,1750229449590,-696.53,0.00024109,6]
[366394661,1750229449602,-615.68,0.00024109,6]
[366394662,1750229449612,-3000.0,0.0002411,2]
[366394663,1750229449622,-150.0,0.00024113,2]
[366394664,1750229449632,-3000.0,0.0002412,2]
[366394665,1750229449642,-677.0,0.00024127,2]
[366394666,1750229449651,-3000.0,0.0002413,2]
[366394667,1750229449661,-402.45191863,0.00024138,2]
[366394668,1750229449670,-3000.0,0.0002414,2]
[366394669,1750229449679,-3000.0,0.0002415,2]
[366394670,1750229449689,-291.357305,0.0002415,7]
[366394671,1750229449698,-151.0,0.0002415,7]
[366394672,1750229449707,-5000.0,0.00024156,2]
[366394673,1750229449717,-160.305249,0.00024156,7]
[366394674,1750229449727,-160.305249,0.00024156,7]
[366394675,1750229449736,-151.0,0.00024156,7]
[366394676,1750229449746,-195.985548,0.00024156,7]
[366394677,1750229449755,-1003.790933,0.00024156,2]
[366394678,1750229449765,-1003.790933,0.00024156,2]
[366394679,1750229449774,-151.0,0.00024156,7]
[366394680,1750229449783,-3000.0,0.0002416,2]
[366394681,1750229449793,-3000.0,0.0002417,2]
[366394682,1750229449803,-3000.0,0.0002418,2]
[366394683,1750229449812,-3000.0,0.0002419,2]
[366394684,1750229449821,-3000.0,0.000242,2]
[366394685,1750229449830,-1412.75,0.000242,2]
[366394686,1750229449839,-639.0,0.000242,2]
[366394687,1750229449848,-3000.0,0.0002421,2]
[366394688,1750229449858,-151.0,0.00024219,7]
[366394689,1750229449867,-151.0,0.00024219,7]
[366394690,1750229449877,-220.041098,0.00024219,2]
[366394691,1750229449886,-220.041098,0.00024219,2]
[366394692,1750229449895,-517.38,0.00024219,6]
[366394693,1750229449904,-1001.06,0.00024219,6]
[366394694,1750229449914,-714.92,0.00024219,6]
[366394695,1750229449923,-1397.67,0.00024219,6]
[366394696,1750229449932,-637.71,0.00024219,6]
[366394697,1750229449941,-465.71,0.00024219,6]
[366394698,1750229449951,-621.89,0.00024219,6]
[366394699,1750229449960,-460.0,0.00024219,6]
[366394700,1750229449969,-2210.68,0.00024219,6]
[366394701,1750229449978,-696.53,0.00024219,6]
[366394702,1750229449987,-615.68,0.00024219,6]
[366394703,1750229449996,-3000.0,0.0002422,2]
[366394704,1750229450006,-3782.15268,0.0002423,2]
[366394705,1750229450015,-272.09578767,0.00024245,10]
[366394706,1750229450024,-13405.0781,0.000243,30]
[366394707,1750229450033,-151.0,0.000243,7]
[366394708,1750229450043,-315.48910325,0.000243,30]
[366394709,1750229450052,-500.0,0.000243,2]
[366394710,1750229450061,-12542.39314967,0.000243,30]
[366394711,1750229450070,-1000.0,0.00024308,2]
[366394712,1750229450079,-1000.0,0.0002431,2]
[366394713,1750229450089,-517.38,0.00024328,6]
[366394714,1750229450098,-1001.06,0.00024328,6]
[366394715,1750229450107,-714.92,0.00024328,6]
[366394716,1750229450116,-1397.67,0.00024328,6]
[366394717,1750229450125,-637.71,0.00024328,6]
[366394718,1750229450135,-465.71,0.00024328,6]
[366394719,1750229450144,-621.89,0.00024328,6]
[366394720,1750229450154,-210.21,0.00024328,6]
[366394721,1750229450163,-2210.68,0.00024328,6]
[366394722,1750229450172,-696.53,0.00024328,6]
[366394723,1750229450181,-615.68,0.00024328,6]
[366394724,1750229450190,-309.8092932,0.00024329,2]
[366394725,1750229450199,-153.0,0.00024329,2]
[366394726,1750229450208,-272.09578767,0.00024383,11]
[366394727,1750229450217,-385.76134592,0.00024385,2]
[366394728,1750229450227,-1800.0,0.00024385,2]
[366394729,1750229450235,-517.6,0.00024438,6]
[366394730,1750229450245,-1001.07720181,0.00024438,6]
[366394731,1750229450254,-714.94932473,0.00024438,6]
[366394732,1750229450263,-1397.8,0.00024438,6]
[366394733,1750229450273,-637.83,0.00024438,6]
[366394734,1750229450282,-465.84,0.00024438,6]
[366394735,1750229450291,-621.98,0.00024438,6]
[366394736,1750229450300,-2210.68625352,0.00024438,6]
[366394737,1750229450310,-696.54398814,0.00024438,6]
[366394738,1750229450319,-615.85,0.00024438,6]
[366394739,1750229450328,-348.0,0.00024489,2]
[366394740,1750229450337,-151.0,0.00024511,7]
[366394741,1750229450346,-272.09578767,0.00024521,11]
[366394742,1750229450356,-363.19932225,0.00024587,2]
[366394743,1750229450365,-402.45191863,0.00024602,2]
[366394744,1750229450374,-153.0,0.00024603,2]
[366394745,1750229450455,-153.0,0.00024603,2]
[366394746,1750229450464,-153.0,0.00024603,2]
[366394747,1750229450475,-153.0,0.00024603,2]
[366394748,1750229450486,-153.0,0.00024603,2]
[366394749,1750229450495,-453.2312045,0.00024603,2]
[366394750,1750229450504,-151.0,0.00024621,7]
[366394751,1750229450514,-160.0,0.00024656,2]
[366394752,1750229450527,-1000.0,0.00024658,2]
[366394753,1750229450537,-1000.0,0.00024658,2]
[366394754,1750229450546,-1000.0,0.00024658,2]
[366394755,1750229450557,-608.0,0.00024658,2]
[366394756,1750229450568,-500.0,0.00024658,2]
[366394757,1750229450577,-272.09578767,0.00024659,11]
[366394758,1750229450586,-324.54247563,0.0002466,2]
[366394759,1750229450598,-500.0,0.00024685,2]
[366394760,1750229450608,-500.0,0.000247,2]
[366394761,1750229450617,-505.43511278,0.000247,15]
[366394762,1750229450627,-500.0,0.00024713,2]
[366394763,1750229450636,-151.0,0.00024731,7]
[366394764,1750229450646,-500.0,0.0002474,2]
[366394765,1750229450656,-500.0,0.00024768,2]
[366394766,1750229450665,-500.0,0.0002477,7]
[366394767,1750229450674,-500.0,0.00024795,2]
[366394768,1750229450684,-272.09578767,0.00024797,11]
[366394769,1750229450693,-4650.74777927,0.000248,2]
[366394770,1750229450703,-4930.44117991,0.000248,2]
[366394771,1750229450714,-86979.28,0.000248,2]
[366394772,1750229450723,-152.685085,0.000248,7]
[366394773,1750229450733,-151.0,0.000248,7]
[366394774,1750229450742,-151.0,0.000248,7]
[366394775,1750229450752,-154.62869,0.000248,7]
[366394776,1750229450762,-220.041098,0.000248,2]
[366394777,1750229450772,-220.041098,0.000248,2]
[366394778,1750229450782,-2004.27863476,0.000248,2]
[366394779,1750229450792,-160.305249,0.000248,7]
[366394780,1750229450802,-262.2992,0.000248,2]
[366394781,1750229450811,-160.305249,0.000248,7]
[366394782,1750229450820,-262.2992,0.000248,2]
[366394783,1750229450830,-198.093006,0.000248,7]
[366394784,1750229450839,-10495.153011,0.000248,2]
[366394785,1750229450848,-1003.790933,0.000248,2]
[366394786,1750229450858,-1003.790933,0.000248,2]
[366394787,1750229450867,-71463.74300885,0.000248,2]
[366394788,1750229450901,-2243.68564002,0.000248,2]
[366394789,1750229451114,-197.197,0.00023933,2]
[366394790,1750229451123,-106.61359378,0.000248,2]
[366394791,1750229451191,-61.23106185,0.000248,2]
[366394792,1750229451202,-11945.16284438,0.000248,2]
[366394793,1750229451214,-7404.34407252,0.000248,2]
[366394794,1750229451223,-151.0,0.000248,7]
[366394795,1750229451232,-500.0,0.00024822,2]
[366394796,1750229451241,-2004.27863476,0.0002483,2]
[366394797,1750229451251,-151.0,0.00024841,7]
[366394798,1750229451260,-500.0,0.0002485,2]
[366394799,1750229451270,-1500.0,0.00024856,2]
[366394800,1750229451279,-507.23650433,0.00024858,2]
[366394801,1750229451288,-2004.27863476,0.00024859,2]
[366394802,1750229451297,-1997.5524399,0.00024871,2]
[366394803,1750229451309,-766.64266562,0.00024871,2]
[366394804,1750229451320,-564.77275964,0.00024871,2]
[366394805,1750229639882,-378.23402232,0.00018878,2]
[366394806,1750229645900,-165.39116841,0.00018878,2]
[366394807,1750229703372,-159.94127445,0.00018878,2]
[366394808,1750229705935,-213.69524621,0.00018878,2]
[366394809,1750229736778,-166.7069979,0.00018869,2]
[366394810,1750229809155,2004.0,0.00018,2]
[366394811,1750229816334,-300.0,0.00018312,2]
[366394812,1750229829833,5000.0,0.000181,2]
[366394813,1750229830451,-326.89562294,0.00018312,2]
[366394814,1750229845643,2916.91429026,0.000181,2]
[366394815,1750229845669,2083.08570974,0.000181,2]
[366394816,1750229861113,5000.0,0.000181,2]
[366394817,1750229876303,5000.0,0.000181,2]
[366394818,1750229892217,5000.0,0.000181,2]
[366394819,1750229908052,2916.91429026,0.000181,2]
[366394820,1750229908076,2083.08570974,0.000181,2]
[366394821,1750229919969,-46.96641443,0.00018312,2]
[366394822,1750229919992,-103.03358557,0.00018496,2]
[366394823,1750229926545,-268.0861953,0.00018311,2]
[366394824,1750229927388,-4731.9138047,0.00018311,2]
[366394826,1750229940128,255.0861953,0.00018311,2]
[366394827,1750229942314,-407.02,0.00018311,2]
[366394835,1750229992818,-4335.0,0.00018311,2]
[366394837,1750230006384,13770.5141557,0.00017993,2]
[366394841,1750230120623,172.923785,0.00013699,2]
[366394842,1750230121989,-2.8938047,0.00018311,2]
[366394843,1750230122010,-182.83907497,0.00018496,2]
[366394844,1750230129183,-386.03405117,0.00018311,2]
[366394845,1750230130975,-4578.0,0.00018311,2]
[366394846,1750230183813,-267.78541315,0.00018118,2]
[366394847,1750230203858,-2208.0,0.00018118,2]
[366394848,1750230265552,-15.92278025,0.00018118,2]
[366394849,1750230265575,-35.96594883,0.00018311,2]
[366394850,1750230265596,-51.05835815,0.00018496,2]
[366394851,1750230265618,-47.05291277,0.00018769,2]
[366394852,1750230272793,-273.27838388,0.00018581,2]
[366394853,1750230274213,-226.72161612,0.00018581,2]
[366394854,1750230284268,413.690078,0.00017974,2]
[366394855,1750230298110,-300.0,0.00018581,2]
[366394856,1750230383536,160.9995055,0.00017987,2]
[366394857,1750230418295,251.76264765,0.00017652,2]
[366394858,1750230461202,-179.68401746,0.00018395,2]
[366394859,1750230481943,-230.70562783,0.00018395,2]
[366394860,1750230498241,-176.0325545,0.00018395,2]
[366394861,1750230502296,-417.2674455,0.00018395,2]
[366394863,1750230594478,-176.0325545,0.00018395,2]
[366394864,1750230596820,-230.31418641,0.00018395,2]
[366394866,1750230630956,3147.02411841,0.00017993,2]
[366394867,1750230630983,20000.0,0.00017993,2]
[366394868,1750230631010,10818.48473319,0.00017993,2]
[366394886,1750230631883,-3589.9636138,0.00018395,2]
[366394887,1750230631894,-124.53669268,0.00018769,2]
[366394888,1750230631905,-139.728671,0.00018869,2]
[366394889,1750230631916,-794.5976983,0.000189,2]
[366394890,1750230631927,-430.80073137,0.00018963,2]
[366394891,1750230631937,-205.58999574,0.00018969,2]
[366394892,1750230631948,-183.25701603,0.00019,2]
[366394893,1750230631958,-251.4080715,0.00019053,2]
[366394894,1750230631969,-156.587,0.00019053,2]
[366394895,1750230631980,-1200.0,0.00019061,2]
[366394896,1750230631990,-300.0,0.00019062,2]
[366394897,1750230632001,-300.0,0.00019062,2]
[366394898,1750230632012,-300.0,0.00019062,2]
[366394899,1750230632023,-300.0,0.00019062,2]
[366394900,1750230632033,-300.0,0.00019062,2]
[366394901,1750230632044,-479.07022859,0.00019063,2]
[366394902,1750230632055,-30653.04501806,0.00019063,2]
[366394903,1750230632068,-3660.36447654,0.00019063,2]
[366394904,1750230632080,-8246.22072628,0.00019063,2]
[366394939,1750230637939,-467.470295,0.00019062,2]
[366394941,1750230637949,-500.0,0.00019062,2]
[366394943,1750230637958,-500.0,0.00019062,2]
[366394944,1750230637968,-500.0,0.00019062,2]
[366394947,1750230637977,-158.41768421,0.00019062,2]
[366394949,1750230637987,-500.0,0.00019062,2]
[366394951,1750230637996,-500.0,0.00019062,2]
[366394952,1750230638006,-500.0,0.00019062,2]
[366394954,1750230638016,-500.0,0.00019062,2]
[366394956,1750230638025,-500.0,0.00019062,2]
[366394958,1750230638034,-500.0,0.00019062,2]
[366394961,1750230638044,-500.0,0.00019062,2]
[366394963,1750230638054,-500.0,0.00019062,2]
[366394964,1750230638063,-500.0,0.00019062,2]